bitfinex/quotes_BTCUSD_20250423
["timestamp","ask_amount","ask_price","bid_price","bid_amount"]
[1745403127376,0.0018516,93327.0,93326.0,0.00202153]
[1745403127609,0.0018516,93327.0,93326.0,5.00202153]
[1745403127824,0.0028516,93327.0,93326.0,5.0]
[1745403128081,0.0008516,93327.0,93325.0,5.0]
[1745403128288,0.0008516,93327.0,93326.0,0.00202153]
[1745403128485,0.0018516,93327.0,93326.0,3.76690753]
[1745403128689,0.0008516,93327.0,93326.0,4.63553]
[1745403128888,0.0008516,93327.0,93325.0,4.825975]
[1745403129230,0.0028516,93327.0,93326.0,4.81389553]
[1745403129443,0.0028516,93327.0,93326.0,4.024184]
[1745403129653,0.0028516,93327.0,93326.0,3.83665908]
[1745403129863,0.0008516,93327.0,93322.0,5.21319158]
[1745403130083,0.0008516,93327.0,93323.0,4.86449768]
[1745403130294,0.0008516,93327.0,93324.0,3.747]
[1745403130496,0.0008516,93327.0,93325.0,0.00202176]
[1745403130705,0.10830305,93326.0,93325.0,1.567144]
[1745403130915,0.10830305,93326.0,93306.0,0.10428]
[1745403131138,0.10830305,93326.0,93307.0,5.30877918]
[1745403131396,0.0266988,93325.0,93308.0,2.83135]
[1745403131628,0.20620305,93324.0,93309.0,2.65820852]
[1745403131873,0.15650305,93324.0,93305.0,4.862476]
[1745403132102,0.15650305,93324.0,93312.0,0.01071673]
[1745403132309,0.0497,93336.0,93312.0,0.01071673]
[1745403132310,0.01937792,93340.0,93326.0,0.01071512]
[1745403132520,0.10830305,93339.0,93328.0,0.01071489]
[1745403132731,0.10830305,93339.0,93329.0,0.01273644]
[1745403132935,0.10830305,93339.0,93329.0,4.86449766]
[1745403133145,0.10830305,93339.0,93330.0,4.862476]
[1745403133383,0.002,93349.0,93336.0,0.01071397]
[1745403133597,0.10830305,93340.0,93337.0,4.86449691]
[1745403133797,0.10830305,93340.0,93332.0,4.862476]
[1745403134003,0.10830305,93340.0,93333.0,0.00202157]
[1745403134214,0.002,93349.0,93333.0,0.01071432]
[1745403134432,0.02301707,93348.0,93334.0,4.86449669]
[1745403134662,0.02301707,93348.0,93335.0,4.796257]
[1745403134850,0.10830305,93340.0,93336.0,1.29504797]
[1745403135095,0.10830305,93340.0,93337.0,1.32435]
[1745403135283,0.10830305,93340.0,93325.0,4.69755024]
[1745403135559,0.002,93349.0,93335.0,0.01071409]
[1745403135560,0.0028512,93341.0,93335.0,0.01071409]
[1745403135781,0.0008512,93341.0,93336.0,4.86449687]
[1745403135996,0.0008512,93341.0,93337.0,3.903897]
[1745403136214,0.003,93340.0,93338.0,0.00202074]
[1745403136437,0.00378732,93339.0,93331.0,0.01273533]
[1745403136683,0.00378732,93339.0,93331.0,4.86449678]
[1745403136901,0.0038512,93341.0,93332.0,4.862476]
[1745403137174,0.0038512,93341.0,93333.0,0.00202052]
[1745403137386,0.0038512,93341.0,93334.0,4.862476]
[1745403137651,0.0038512,93341.0,93335.0,0.00202081]
[1745403137865,0.0038512,93341.0,93335.0,4.86449681]
[1745403138068,0.0008512,93341.0,93336.0,0.00202074]
[1745403138284,0.0028512,93341.0,93337.0,0.34]
[1745403138529,0.11209102,93340.0,93338.0,3.11603]
[1745403138747,0.13132012,93340.0,93339.0,0.435568]
[1745403138970,0.13132012,93340.0,93339.0,0.263344]
[1745403139179,0.18481826,93340.0,93339.0,0.1063]
[1745403139396,0.0473,93339.0,93310.0,4.86449839]
[1745403139602,0.02301707,93332.0,93310.0,4.862476]
[1745403139835,0.13132012,93331.0,93311.0,4.86449848]
[1745403140041,0.13132012,93331.0,93312.0,4.862476]
[1745403140241,0.13132012,93331.0,93313.0,0.00202271]
[1745403140450,0.13132012,93331.0,93314.0,4.862476]
[1745403140642,0.10830305,93331.0,93315.0,0.00202289]
[1745403140944,0.10830305,93331.0,93316.0,4.862476]
[1745403141101,0.13132012,93331.0,93317.0,0.00202289]
[1745403141306,0.13132012,93331.0,93319.0,0.34]
[1745403141530,0.02301707,93321.0,93310.0,0.003]
[1745403141729,0.13132012,93311.0,93310.0,0.003]
[1745403141929,0.13132012,93311.0,93281.0,0.0020252]
[1745403141930,0.02301707,93305.0,93281.0,0.0020252]
[1745403142148,0.10730305,93303.0,93282.0,0.34]
[1745403142318,0.02301707,93302.0,93283.0,1.4758414]
[1745403142513,0.10830305,93301.0,93285.0,0.34]
[1745403142717,0.10730305,93301.0,93287.0,0.34]
[1745403142972,0.10730305,93301.0,93288.0,1.67686041]
[1745403143177,0.10830305,93298.0,93289.0,1.673761]
[1745403143384,0.10830305,93292.0,93290.0,0.10903]
[1745403143656,0.05205155,93297.0,93272.0,2.740215]
[1745403143657,0.02301707,93278.0,93272.0,2.740215]
[1745403143861,0.13132012,93277.0,93271.0,0.002]
[1745403144091,0.13232012,93272.0,93271.0,0.002]
[1745403144291,0.13607298,93272.0,93271.0,0.12251]
[1745403144497,0.13587808,93272.0,93271.0,0.002]
[1745403144698,0.13963121,93272.0,93271.0,0.002]
[1745403145123,0.13963121,93272.0,93271.0,0.003]
[1745403145326,0.13863121,93272.0,93271.0,0.002]
[1745403145535,0.13587808,93272.0,93271.0,0.002]
[1745403145745,0.14087808,93272.0,93271.0,0.003]
[1745403146797,0.14087808,93272.0,93271.0,0.873759]
[1745403146962,0.13732012,93272.0,93271.0,0.873758]
[1745403147161,0.13732012,93272.0,93271.0,0.671093]
[1745403147389,0.14079584,93272.0,93271.0,0.650523]
[1745403147749,0.14079584,93272.0,93271.0,0.46829021]
[1745403147944,0.14079584,93272.0,93257.0,2.995525]
[1745403148153,0.02301707,93268.0,93258.0,2.29770675]
[1745403148361,0.10830305,93267.0,93259.0,1.725818]
[1745403148559,0.10830305,93267.0,93260.0,1.75531095]
[1745403148760,0.10830305,93267.0,93261.0,1.705876]
[1745403149043,0.10830305,93267.0,93262.0,0.50394]
[1745403149265,0.10830305,93267.0,93258.0,0.001]
[1745403149473,0.10830305,93267.0,93257.0,1.980538]
[1745403149474,0.10830305,93267.0,93259.0,0.00202795]
[1745403149686,0.06981707,93290.0,93279.0,0.01072052]
[1745403149894,0.10830305,93289.0,93280.0,2.84150298]
[1745403150120,0.10148936,93289.0,93281.0,3.48327313]
[1745403150403,0.10148936,93289.0,93282.0,2.67498013]
[1745403150576,0.10148936,93289.0,93277.0,0.34]
[1745403150752,0.10148936,93289.0,93278.0,3.69801613]
[1745403151080,0.10148936,93289.0,93280.0,0.01072041]
[1745403151291,0.02301707,93304.0,93290.0,0.01071926]
[1745403151493,0.02301707,93301.0,93291.0,2.78211587]
[1745403151706,0.10830305,93300.0,93292.0,0.00202502]
[1745403151906,0.10830305,93300.0,93293.0,0.34]
[1745403152120,0.10830305,93300.0,93294.0,4.68526912]
[1745403152327,0.10830305,93300.0,93293.0,0.35071891]
[1745403152328,0.10830305,93300.0,93295.0,5.02526903]
[1745403152529,0.10830305,93300.0,93297.0,0.01071845]
[1745403152745,0.02301707,93321.0,93305.0,0.01071753]
[1745403152938,0.02301707,93321.0,93299.0,0.35071822]
[1745403152939,0.02301707,93321.0,93307.0,0.34]
[1745403153149,0.10830305,93320.0,93309.0,0.34]
[1745403153360,0.10830305,93320.0,93317.0,0.01071616]
[1745403153572,0.02301707,93330.0,93319.0,0.34]
[1745403153775,0.02301707,93330.0,93320.0,3.5555176]
[1745403153776,0.10830305,93328.0,93320.0,3.5555176]
[1745403153977,0.10830305,93328.0,93321.0,0.475088]
[1745403154201,0.10830305,93328.0,93320.0,0.920249]
[1745403154404,0.02301707,93320.0,93308.0,0.01071719]
[1745403154613,0.10830305,93319.0,93310.0,0.34]
[1745403154814,0.10830305,93319.0,93311.0,0.00202355]
[1745403155019,0.02301707,93331.0,93315.0,0.01071639]
[1745403155223,0.10830305,93328.0,93316.0,3.41275089]
[1745403155386,0.10830305,93328.0,93317.0,0.34]
[1745403155591,0.10830305,93328.0,93318.0,0.0020229]
[1745403155802,0.002,93319.0,93318.0,0.0020229]
[1745403156174,0.10830305,93328.0,93319.0,0.34]
[1745403156375,0.11230305,93328.0,93320.0,1.4078969]
[1745403156615,0.11230305,93328.0,93321.0,1.7442609]
[1745403156859,0.11230305,93328.0,93319.0,0.34]
[1745403156860,0.11230305,93328.0,93322.0,1.049996]
[1745403157072,0.11230305,93328.0,93323.0,0.617045]
[1745403157289,0.11230305,93328.0,93320.0,1.092214]
[1745403157631,0.10830305,93328.0,93320.0,0.98664]
[1745403157838,0.10830305,93328.0,93320.0,0.478768]
[1745403158084,0.08501549,93340.0,93231.0,0.002]
[1745403158085,0.02301707,93322.0,93318.0,0.001]
[1745403158286,0.02301707,93317.0,93304.0,0.34202377]
[1745403158547,0.10730305,93316.0,93304.0,3.433764]
[1745403158736,0.10730305,93316.0,93305.0,2.73123]
[1745403158889,0.02301707,93315.0,93306.0,0.00202418]
[1745403159093,0.10830305,93314.0,93306.0,0.99556118]
[1745403159294,0.10830305,93314.0,93307.0,2.066234]
[1745403159502,0.10830305,93314.0,93305.0,2.612525]
[1745403160389,0.10830305,93314.0,93305.0,1.450777]
[1745403161208,0.11130305,93314.0,93305.0,1.450777]
[1745403161416,0.02301707,93315.0,93306.0,0.01274073]
[1745403161617,0.13132012,93315.0,93307.0,4.683244]
[1745403161822,0.003,93314.0,93308.0,0.00202369]
[1745403162030,0.003,93314.0,93309.0,4.464856]
[1745403162233,0.11130305,93314.0,93310.0,0.0020237]
[1745403162443,0.11130305,93314.0,93310.0,1.6325327]
[1745403162638,0.10830305,93314.0,93311.0,1.624764]
[1745403162817,0.11130305,93314.0,93308.0,0.001]
[1745403163034,0.10830305,93313.0,93309.0,2.13097777]
[1745403163281,0.10830305,93313.0,93308.0,0.001]
[1745403163282,0.10830305,93313.0,93310.0,1.570984]
[1745403163483,0.10830305,93313.0,93309.0,1.659459]
[1745403164245,0.10830305,93313.0,93305.0,3.820873]
[1745403164446,0.10830305,93313.0,93310.0,0.001]
[1745403164678,0.10830305,93313.0,93311.0,1.780198]
[1745403164882,0.10830305,93313.0,93305.0,3.722995]
[1745403165121,0.11230305,93313.0,93309.0,0.001]
[1745403165347,0.10830305,93313.0,93310.0,2.758969]
[1745403165612,0.11230305,93313.0,93311.0,1.241436]
[1745403166053,0.10830305,93313.0,93311.0,0.873961]
[1745403166273,0.10830305,93313.0,93312.0,0.184557]
[1745403166473,0.11166374,93313.0,93305.0,2.4869233]
[1745403166687,0.10830305,93313.0,93306.0,1.930027]
[1745403166912,0.10830305,93313.0,93305.0,2.570259]
[1745403167138,0.11330305,93313.0,93309.0,0.001]
[1745403167361,0.00336005,93312.0,93310.0,0.622659]
[1745403167598,0.10830305,93311.0,93310.0,0.622659]
[1745403167819,0.10830305,93311.0,93306.0,0.001]
[1745403168035,0.00335875,93310.0,93306.0,0.001]
[1745403168248,0.10830305,93309.0,93307.0,2.464828]
[1745403168462,0.10830305,93309.0,93269.0,0.35312]
[1745403168463,0.02301707,93307.0,93300.0,1.310493]
[1745403168660,0.02301707,93307.0,93284.0,0.1026]
[1745403168661,0.02301707,93300.0,93285.0,3.141347]
[1745403168861,0.10830305,93299.0,93286.0,0.00202498]
[1745403169058,0.10730305,93299.0,93287.0,4.683244]
[1745403169339,0.10730305,93299.0,93288.0,0.3420252]
[1745403169519,0.10730305,93299.0,93289.0,3.603619]
[1745403169723,0.10730305,93299.0,93290.0,0.0020252]
[1745403169927,0.10730305,93299.0,93291.0,3.664192]
[1745403170138,0.10730305,93299.0,93292.0,0.0020252]
[1745403170315,0.10730305,93299.0,93292.0,3.5743622]
[1745403170513,0.10730305,93299.0,93293.0,3.3604282]
[1745403170715,0.10730305,93299.0,93294.0,0.885388]
[1745403171081,0.10730305,93299.0,93289.0,0.471717]
[1745403171232,0.10730305,93299.0,93290.0,0.00202547]
[1745403171431,0.10730305,93299.0,93291.0,0.574051]
[1745403171607,0.10830305,93299.0,93291.0,0.492311]
[1745403171814,0.10830305,93299.0,93277.0,0.34]
[1745403171815,0.00328825,93298.0,93278.0,4.61444]
[1745403172014,0.02301707,93289.0,93279.0,0.00202548]
[1745403172203,0.001,93293.0,93280.0,0.663179]
[1745403172204,0.02301707,93281.0,93280.0,0.663179]
[1745403172404,0.13132012,93281.0,93280.0,0.663179]
[1745403172603,0.02301707,93294.0,93278.0,0.01072064]
[1745403172818,0.11154976,93293.0,93280.0,0.34]
[1745403173070,0.10830305,93293.0,93285.0,0.01071983]
[1745403173304,0.001,93299.0,93296.0,0.01071857]
[1745403173478,0.001,93299.0,93298.0,0.34]
[1745403173675,0.001,93299.0,93298.0,5.023244]
[1745403174290,0.02301707,93315.0,93303.0,0.01071776]
[1745403174471,0.002,93329.0,93308.0,0.01071719]
[1745403174679,0.10830305,93328.0,93311.0,0.01071685]
[1745403175029,0.13132012,93328.0,93313.0,0.34]
[1745403175181,0.13132012,93328.0,93315.0,0.34]
[1745403175383,0.13132012,93328.0,93317.0,0.34]
[1745403175613,0.13132012,93328.0,93318.0,2.91172715]
[1745403175823,0.13132012,93328.0,93319.0,1.213397]
[1745403175989,0.13132012,93328.0,93318.0,2.959553]
[1745403176191,0.13832012,93328.0,93319.0,0.00202315]
[1745403176436,0.13832012,93328.0,93320.0,1.25859]
[1745403176589,0.13832012,93328.0,93320.0,1.200457]
[1745403176789,0.13832012,93328.0,93318.0,3.445278]
[1745403177009,0.13832012,93328.0,93318.0,0.308303]
[1745403177010,0.13232012,93319.0,93318.0,0.308303]
[1745403177373,0.11771707,93316.0,93315.0,0.001]
[1745403177493,0.2297714,93316.0,93281.0,0.00202499]
[1745403177690,0.02301707,93297.0,93281.0,3.16256999]
[1745403177918,0.10730305,93296.0,93282.0,3.914101]
[1745403178121,0.10730305,93296.0,93283.0,0.0020256]
[1745403178320,0.10730305,93296.0,93285.0,0.34]
[1745403178553,0.10630305,93296.0,93286.0,2.4028636]
[1745403178749,0.10630305,93296.0,93287.0,3.319056]
[1745403178952,0.10630305,93296.0,93288.0,0.0020256]
[1745403179162,0.10830305,93296.0,93289.0,3.020099]
[1745403179363,0.10630305,93296.0,93290.0,2.526401]
[1745403179567,0.10630305,93296.0,93291.0,2.378953]
[1745403179770,0.10630305,93296.0,93286.0,3.780041]
[1745403180030,0.10630305,93296.0,93287.0,0.00202509]
[1745403180214,0.10630305,93296.0,93288.0,4.683244]
[1745403180419,0.10630305,93296.0,93289.0,0.00202535]
[1745403180687,0.10630305,93296.0,93290.0,4.204252]
[1745403180900,0.10551682,93296.0,93291.0,3.23841036]
[1745403181103,0.10551682,93296.0,93286.0,4.684244]
[1745403181307,0.10551682,93296.0,93287.0,4.68526936]
[1745403181511,0.10551682,93296.0,93288.0,4.683244]
[1745403181720,0.002,93296.0,93292.0,0.01071903]
[1745403181923,0.002,93296.0,93294.0,0.34]
[1745403182149,0.02301707,93310.0,93296.0,0.34]
[1745403182402,0.10830305,93309.0,93298.0,0.34]
[1745403182604,0.10830305,93309.0,93299.0,0.00202452]
[1745403182814,0.10830305,93309.0,93299.0,3.58286252]
[1745403182979,0.10830305,93309.0,93299.0,3.580838]
[1745403183285,0.10830305,93309.0,93298.0,0.34]
[1745403183522,0.00325225,93308.0,93299.0,3.73910652]
[1745403183721,0.10830305,93307.0,93293.0,0.34]
[1745403183923,0.10830305,93307.0,93294.0,0.3420246]
[1745403184142,0.10830305,93307.0,93295.0,4.683244]
[1745403184324,0.10830305,93307.0,93296.0,0.34202461]
[1745403184463,0.10830305,93307.0,93298.0,0.34]
[1745403184665,0.10830305,93307.0,93299.0,4.68526861]
[1745403184865,0.10830305,93307.0,93300.0,3.13392961]
[1745403185222,0.10930305,93307.0,93301.0,3.131905]
[1745403185393,0.10930305,93307.0,93296.0,0.34]
[1745403185573,0.10930305,93307.0,93297.0,4.68526861]
[1745403185782,0.11130305,93307.0,93298.0,3.794892]
[1745403186001,0.11030305,93307.0,93299.0,3.14564561]
[1745403186209,0.11030305,93307.0,93300.0,2.104786]
[1745403186377,0.11030305,93307.0,93301.0,0.00202461]
[1745403186582,0.11030305,93307.0,93302.0,2.974897]
[1745403187004,0.11030305,93307.0,93299.0,2.709439]
[1745403187229,0.11230305,93307.0,93300.0,0.00302462]
[1745403187414,0.11230305,93307.0,93301.0,3.350904]
[1745403187619,0.10830305,93307.0,93301.0,3.017847]
[1745403187797,0.10830305,93307.0,93299.0,3.449153]
[1745403188006,0.11130305,93307.0,93302.0,0.001]
[1745403188342,0.003,93307.0,93304.0,0.35071765]
[1745403188554,0.00927058,93326.0,93307.0,0.0107173]
[1745403188762,0.10830305,93325.0,93309.0,0.34]
[1745403188965,0.10830305,93325.0,93311.0,0.34]
[1745403189116,0.10830305,93325.0,93313.0,0.34]
[1745403189345,0.10830305,93325.0,93315.0,0.34]
[1745403189567,0.10830305,93325.0,93316.0,4.68526732]
[1745403189787,0.10830305,93325.0,93317.0,4.683244]
[1745403190035,0.10830305,93325.0,93316.0,4.683244]
[1745403190232,0.10830305,93325.0,93317.0,0.00202332]
[1745403190476,0.10830305,93325.0,93318.0,4.683244]
[1745403190696,0.10830305,93325.0,93319.0,0.00202313]
[1745403190898,0.10830305,93325.0,93320.0,4.683244]
[1745403191422,0.11430305,93325.0,93317.0,3.665377]
[1745403191573,0.11430305,93325.0,93318.0,4.68526713]
[1745403191785,0.11930305,93325.0,93319.0,4.497898]
[1745403191983,0.11930305,93325.0,93320.0,4.004544]
[1745403192198,0.10830305,93325.0,93320.0,3.895857]
[1745403192409,0.11330305,93325.0,93320.0,0.001]
[1745403192622,0.005,93325.0,93322.0,0.35071558]
[1745403192974,0.005,93325.0,93324.0,0.34]
[1745403193180,0.005,93325.0,93324.0,5.023244]
[1745403193787,0.01027058,93346.0,93325.0,0.01071524]
[1745403194026,0.00927058,93346.0,93326.0,0.0020219]
[1745403194246,0.00927058,93346.0,93326.0,4.6852659]
[1745403194452,0.00927058,93346.0,93327.0,4.683244]
[1745403194657,0.00927058,93346.0,93326.0,4.683244]
[1745403194865,0.00927058,93346.0,93327.0,0.00202154]
[1745403195087,0.000851,93345.0,93327.0,4.68526554]
[1745403195321,0.002,93328.0,93327.0,4.683244]
[1745403197532,0.001,93328.0,93327.0,5.023244]
[1745403197978,0.003,93328.0,93327.0,5.023244]
[1745403199151,0.00069439,93345.0,93329.0,0.01071478]
[1745403199361,0.10830305,93344.0,93331.0,0.34]
[1745403199574,0.10830305,93344.0,93333.0,0.34]
[1745403199746,0.10830305,93344.0,93335.0,0.34]
[1745403199954,0.10830305,93344.0,93336.0,2.83984372]
[1745403200151,0.10830305,93344.0,93337.0,2.259808]
[1745403200358,0.10830305,93344.0,93336.0,2.329059]
[1745403200518,0.10830305,93344.0,93337.0,0.00202172]
[1745403200904,0.10830305,93344.0,93338.0,2.335085]
[1745403201322,0.10830305,93344.0,93336.0,2.77669]
[1745403201524,0.11230305,93344.0,93337.0,0.001]
[1745403201653,0.11230305,93344.0,93337.0,0.882645]
[1745403201855,0.11230305,93344.0,93338.0,1.074671]
[1745403202082,0.10830305,93344.0,93338.0,1.074671]
[1745403202286,0.10830305,93344.0,93336.0,0.977645]
[1745403202287,0.00927058,93340.0,93336.0,0.977645]
[1745403202484,0.001,93338.0,93337.0,1.181318]
[1745403202692,0.10930305,93338.0,93322.0,0.34]
[1745403202860,0.11146807,93337.0,93329.0,0.34]
[1745403203061,0.00927058,93333.0,93330.0,2.608138]
[1745403203291,0.10830305,93332.0,93328.0,0.821676]
[1745403204468,0.10930305,93332.0,93328.0,0.821676]
[1745403205094,0.10930305,93332.0,93328.0,0.322769]
[1745403205293,0.0953,93330.0,93316.0,0.34]
[1745403205504,0.01027058,93328.0,93308.0,0.10164]
[1745403205866,0.01027058,93328.0,93327.0,0.17168]
[1745403205867,0.12175326,93328.0,93327.0,0.17168]
[1745403205975,0.00317963,93328.0,93327.0,0.319424]
[1745403206182,0.001,93332.0,93327.0,0.319424]
[1745403206387,0.10930305,93332.0,93328.0,5.0359809]
[1745403206588,0.10930305,93332.0,93330.0,0.34]
[1745403206589,0.10830305,93332.0,93330.0,0.34]
[1745403206792,0.10830305,93332.0,93331.0,2.535875]
[1745403207166,0.10830305,93332.0,93331.0,3.692946]
[1745403207361,0.10830305,93332.0,93331.0,3.595779]
[1745403207587,0.11030305,93332.0,93331.0,3.502114]
[1745403207739,0.10830305,93332.0,93331.0,3.363068]
[1745403208362,0.11030305,93332.0,93331.0,3.363068]
[1745403209837,0.11030305,93332.0,93331.0,2.801499]
[1745403210026,0.11030305,93332.0,93331.0,2.664012]
[1745403210948,0.11030305,93332.0,93331.0,2.665012]
[1745403211447,0.002,93332.0,93331.0,2.665012]
[1745403215215,0.002,93332.0,93331.0,2.325012]
[1745403215435,0.002,93332.0,93331.0,2.665012]
[1745403217813,0.11957363,93332.0,93331.0,2.095418]
[1745403219340,0.11957363,93332.0,93331.0,1.420014]
[1745403222184,0.11957363,93332.0,93331.0,1.419014]
[1745403223219,0.11957363,93332.0,93331.0,1.420014]
[1745403223566,0.11957363,93332.0,93331.0,2.241251]
[1745403223767,0.11957363,93332.0,93331.0,2.253395]
[1745403224129,0.11957363,93332.0,93331.0,0.164296]
[1745403224130,0.16737363,93332.0,93331.0,0.164296]
[1745403227665,0.16737363,93332.0,93331.0,0.13085]
[1745403228604,0.16737363,93332.0,93331.0,0.001]
[1745403228811,0.21277363,93332.0,93331.0,0.001]
[1745403231632,0.21077363,93332.0,93331.0,0.001]
[1745403231830,0.21377363,93332.0,93331.0,0.001]
[1745403232271,0.21752414,93332.0,93331.0,0.001]
[1745403233132,0.21752414,93332.0,93331.0,0.208553]
[1745403233442,0.21377363,93332.0,93331.0,0.208553]
[1745403234567,0.21377363,93332.0,93331.0,0.113185]
[1745403235673,0.16697363,93332.0,93331.0,0.113185]
[1745403237043,0.11230305,93332.0,93331.0,0.113185]
[1745403239560,0.12157363,93332.0,93331.0,0.001]
[1745403239694,0.12157363,93332.0,93331.0,0.153193]
[1745403239898,0.12157363,93332.0,93331.0,0.001]
[1745403242004,0.12157363,93332.0,93331.0,0.378891]
[1745403242211,0.11230305,93332.0,93331.0,0.363498]
[1745403242957,0.12157363,93332.0,93331.0,0.363498]
[1745403244219,0.11829079,93332.0,93331.0,0.363498]
[1745403244417,0.11829079,93332.0,93331.0,0.296316]
[1745403244966,0.11829079,93332.0,93331.0,0.216016]
[1745403245389,0.11829079,93332.0,93331.0,0.172454]
[1745403245597,0.11829079,93332.0,93331.0,0.139654]
[1745403246021,0.11829079,93332.0,93331.0,0.125988]
[1745403246628,0.11529079,93332.0,93331.0,0.125988]
[1745403247016,0.11929079,93332.0,93331.0,0.126988]
[1745403247459,0.11330286,93332.0,93331.0,0.126988]
[1745403247688,0.11330286,93332.0,93331.0,0.002]
[1745403248343,0.11330286,93332.0,93331.0,0.686098]
[1745403249189,0.11330286,93332.0,93331.0,0.605815]
[1745403249395,0.10446989,93332.0,93331.0,0.453756]
[1745403249712,0.10446989,93332.0,93331.0,0.31179]
[1745403249939,0.10446989,93332.0,93331.0,0.002]
[1745403250148,0.10446989,93332.0,93331.0,0.112324]
[1745403253192,0.10446989,93332.0,93331.0,0.113324]
[1745403255292,0.09519931,93332.0,93331.0,0.113324]
[1745403255497,0.09419931,93332.0,93331.0,0.453324]
[1745403258521,0.08998758,93332.0,93331.0,0.453324]
[1745403258739,0.004,93332.0,93331.0,0.454324]
[1745403258956,0.003,93332.0,93331.0,0.454324]
[1745403259374,0.003,93332.0,93331.0,0.458605]
[1745403259814,0.00069439,93345.0,93333.0,0.01071432]
[1745403260039,0.10830305,93344.0,93335.0,0.35071409]
[1745403260269,0.10830305,93344.0,93336.0,4.68526577]
[1745403260478,0.10830305,93344.0,93338.0,0.34]
[1745403260696,0.10830305,93344.0,93340.0,0.34]
[1745403260931,0.10830305,93344.0,93342.0,0.34]
[1745403261148,0.10830305,93344.0,93343.0,1.7675]
[1745403261355,0.11030305,93344.0,93343.0,1.056483]
[1745403261574,0.10830305,93344.0,93343.0,1.056483]
[1745403262003,0.10830305,93344.0,93343.0,0.843562]
[1745403262854,0.11130305,93344.0,93343.0,0.843562]
[1745403263242,0.10830305,93344.0,93343.0,0.843562]
[1745403263419,0.11130305,93344.0,93343.0,0.844562]
[1745403264046,0.11130305,93344.0,93343.0,0.504562]
[1745403269125,0.10537224,93344.0,93343.0,0.504562]
[1745403270299,0.10537224,93344.0,93343.0,0.001]
[1745403271347,0.10537224,93344.0,93343.0,2.003881]
[1745403271557,0.10537224,93344.0,93343.0,1.22343]
[1745403271754,0.10537224,93344.0,93343.0,1.106538]
[1745403271976,0.10537224,93344.0,93343.0,1.001858]
[1745403272228,0.10537224,93344.0,93343.0,0.854795]
[1745403276347,0.003,93344.0,93343.0,0.854795]
[1745403279878,0.003,93344.0,93343.0,0.607863]
[1745403279879,0.11130305,93344.0,93343.0,0.607863]
[1745403280107,0.11130305,93344.0,93343.0,0.311869]
[1745403280325,0.11230305,93344.0,93343.0,0.221814]
[1745403280538,0.11230305,93344.0,93343.0,0.142165]
[1745403281179,0.11230305,93344.0,93317.0,0.42421616]
[1745403281426,0.11205284,93343.0,93320.0,0.01071581]
[1745403281662,0.00927058,93319.0,93318.0,4.542079]
[1745403281887,0.01027058,93315.0,93311.0,0.032113]
[1745403282075,0.001,93312.0,93293.0,0.045925]
[1745403282321,0.10930305,93311.0,93294.0,3.455961]
[1745403283236,0.10930305,93311.0,93305.0,0.0004249]
[1745403283460,0.10630305,93311.0,93305.0,0.0004249]
[1745403283673,0.10630305,93311.0,93306.0,0.728812]
[1745403283883,0.10730305,93311.0,93306.0,0.728812]
[1745403284101,0.10730305,93311.0,93307.0,0.662761]
[1745403284316,0.10630305,93311.0,93306.0,0.57697]
[1745403285282,0.10630305,93311.0,93306.0,0.511264]
[1745403285488,0.10630305,93311.0,93307.0,0.125742]
[1745403285693,0.10630305,93311.0,93306.0,0.232903]
[1745403286454,0.10830305,93311.0,93306.0,0.233903]
[1745403286663,0.10830305,93311.0,93307.0,0.593824]
[1745403287108,0.10830305,93311.0,93307.0,0.277938]
[1745403287319,0.10830305,93311.0,93307.0,0.450038]
[1745403287754,0.09428607,93308.0,93307.0,0.450038]
[1745403287965,0.00927058,93307.0,93306.0,0.001]
[1745403288180,0.00927058,93307.0,93305.0,0.0004249]
[1745403288181,0.12132503,93307.0,93305.0,0.0004249]
[1745403288407,0.16527363,93306.0,93305.0,0.0004249]
[1745403288635,0.23858946,93306.0,93305.0,0.0004249]
[1745403288854,0.57858946,93306.0,93305.0,0.0004249]
[1745403289523,0.57758946,93306.0,93305.0,0.0004249]
[1745403289884,0.58658946,93306.0,93305.0,0.0014249]
[1745403290084,0.57204861,93306.0,93305.0,0.0014249]
[1745403290526,0.66984861,93306.0,93305.0,0.0014249]
[1745403292692,0.57204861,93306.0,93305.0,0.0014249]
[1745403292900,0.66984861,93306.0,93305.0,0.0014249]
[1745403295546,0.13514861,93306.0,93305.0,0.6596919]
[1745403295761,0.12687803,93306.0,93305.0,0.6681079]
[1745403295966,0.13514861,93306.0,93305.0,0.7384289]
[1745403296177,0.12687803,93306.0,93305.0,0.7416409]
[1745403296383,0.13514861,93306.0,93305.0,0.5714549]
[1745403296614,0.13514861,93306.0,93305.0,0.5264489]
[1745403296808,0.22769989,93306.0,93305.0,0.0004249]
[1745403297023,0.23094861,93306.0,93305.0,0.0004249]
[1745403297638,0.23794861,93306.0,93305.0,0.0004249]
[1745403298890,0.22394861,93306.0,93305.0,0.0004249]
[1745403299329,0.23194861,93306.0,93305.0,0.0004249]
[1745403299550,0.13414861,93306.0,93305.0,0.0004249]
[1745403299989,0.13790004,93306.0,93305.0,0.0004249]
[1745403302200,0.47790004,93306.0,93305.0,0.0004249]
[1745403302317,0.47414861,93306.0,93305.0,0.0004249]
[1745403302965,0.52344861,93306.0,93305.0,0.0004249]
[1745403303826,0.51517803,93306.0,93305.0,0.0004249]
[1745403304031,0.18344861,93306.0,93305.0,0.0004249]
[1745403304252,0.28500054,93306.0,93305.0,0.0004249]
[1745403304472,0.28124861,93306.0,93305.0,0.0004249]
[1745403305140,0.68508946,93306.0,93305.0,0.0004249]
[1745403305358,0.01454085,93305.0,93259.0,0.0499]
[1745403305570,0.68508946,93306.0,93260.0,4.542079]
[1745403305571,0.00827058,93274.0,93260.0,4.542079]
[1745403305788,0.10830305,93273.0,93260.0,4.157014]
[1745403306430,0.00827058,93272.0,93259.0,0.0499]
[1745403306645,0.10830305,93271.0,93260.0,4.542079]
[1745403306841,0.10830305,93271.0,93260.0,4.544079]
[1745403307068,0.10830305,93271.0,93261.0,4.542079]
[1745403307272,0.10830305,93271.0,93261.0,3.317888]
[1745403307489,0.00375252,93270.0,93261.0,2.760771]
[1745403307695,0.10830305,93269.0,93261.0,2.697577]
[1745403307915,0.10830305,93269.0,93261.0,2.221821]
[1745403308140,0.10830305,93269.0,93261.0,3.918304]
[1745403308383,0.10830305,93269.0,93262.0,1.867742]
[1745403308629,0.10830305,93269.0,93260.0,0.003]